bitfinex/quotes_ETHUSD_20250414
["timestamp","ask_amount","ask_price","bid_price","bid_amount"]
[1744589894259,4.98052,1606.3,1605.9,9.96298]
[1744589894462,6.17,1606.4,1606.1,4.98091]
[1744589894823,11.15008,1606.4,1606.1,4.98091]
[1744589895024,11.15008,1606.4,1606.0,5.76493]
[1744589895233,6.17,1606.4,1606.1,4.98099]
[1744589895436,4.97915,1606.7,1606.3,0.7837]
[1744589895965,4.97966,1606.6,1606.3,0.7837]
[1744589896355,7.97915,1606.7,1606.3,5.76398]
[1744589896553,9.95852,1606.7,1606.3,5.76398]
[1744589898066,12.84379,1607.0,1606.2,4.98065]
[1744589898067,7.039,1607.0,1606.7,4.97903]
[1744589898234,11.14778,1607.2,1606.8,4.97877]
[1744589898428,11.84152,1607.2,1606.8,5.80327]
[1744589898857,4.97801,1607.1,1606.8,0.8245]
[1744589899567,4.97822,1607.0,1606.8,0.8245]
[1744589899766,4.97822,1607.0,1606.6,4.97944]
[1744589899930,4.97853,1606.9,1606.6,0.8245]
[1744589900251,9.243552,1607.0,1606.4,0.8245]
[1744589900429,3.0,1607.0,1606.7,5.80349]
[1744589900860,4.97792,1607.1,1606.7,5.80347]
[1744589901043,4.97792,1607.1,1606.7,0.8245]
[1744589901044,4.97822,1607.0,1606.7,0.8245]
[1744589901450,9.95662,1607.0,1606.7,0.8245]
[1744589901851,7.97794,1607.1,1606.7,5.80347]
[1744589902372,7.97794,1607.1,1606.7,10.78244]
[1744589902581,7.97794,1607.1,1606.7,6.881714]
[1744589902755,7.97794,1607.1,1606.7,11.860714]
[1744589902952,7.97794,1607.1,1606.7,6.881714]
[1744589903160,9.95727,1606.9,1606.7,0.8245]
[1744589903945,4.97956,1606.6,1606.3,5.80483]
[1744589904281,4.97992,1606.5,1606.3,0.8245]
[1744589904440,4.97918,1606.7,1606.3,5.80487]
[1744589904643,9.95852,1606.7,1606.3,5.80473]
[1744589904846,4.97947,1606.6,1606.3,5.80473]
[1744589905061,4.97977,1606.5,1606.3,0.8245]
[1744589905283,0.995852,1606.7,1606.3,0.8245]
[1744589905484,4.97917,1606.7,1606.3,10.7849]
[1744589905642,7.97888,1606.8,1606.4,4.98005]
[1744589905847,7.97888,1606.8,1606.4,4.97995]
[1744589906049,7.036,1606.9,1606.7,0.8245]
[1744589906467,19.64386,1607.2,1606.7,6.881914]
[1744589906666,19.64386,1607.2,1606.8,4.97867]
[1744589906667,23.85423,1607.2,1606.8,4.97867]
[1744589906857,4.9787,1606.9,1606.7,0.8245]
[1744589907061,9.95667,1607.0,1606.5,5.78845]
[1744589907245,4.97826,1607.0,1606.6,10.537435]
[1744589907485,4.97796,1607.1,1606.7,4.97898]
[1744589907785,4.97846,1607.0,1606.6,5.558265]
[1744589907997,4.97853,1606.9,1606.6,4.97942]
[1744589908690,9.95724,1606.9,1606.5,5.78843]
[1744589908978,4.97853,1606.9,1606.5,10.76807]
[1744589909181,4.97853,1606.9,1606.5,10.76794]
[1744589909380,4.97822,1607.0,1606.6,4.9792]
[1744589910392,4.97822,1607.0,1606.7,4.97913]
[1744589910567,9.9566,1607.0,1606.6,4.9792]
[1744589910898,4.97809,1607.1,1606.7,4.97904]
[1744589911191,4.97809,1607.1,1606.7,9.95804]
[1744589911348,9.95616,1607.1,1606.7,9.95804]
[1744589911547,9.95616,1607.1,1606.7,4.979]
[1744589911794,9.95616,1607.1,1606.7,9.95803]
[1744589912094,9.95616,1607.1,1606.7,4.979]
[1744589912561,0.7691,1607.4,1606.9,0.8087]
[1744589912760,6.17,1607.5,1606.9,0.8087]
[1744589912965,10.73078,1607.6,1607.2,4.97744]
[1744589913173,10.73078,1607.6,1607.2,10.786]
[1744589913360,9.95308,1607.6,1607.2,5.80854]
[1744589913553,11.651788,1607.6,1607.2,5.80854]
[1744589913753,4.97672,1607.5,1607.2,0.8311]
[1744589913957,4.92729,1607.3,1606.9,10.78793]
[1744589914267,4.92729,1607.3,1607.0,4.97816]
[1744589914465,4.92729,1607.3,1606.9,0.8311]
[1744589914675,9.95549,1607.2,1606.9,0.8311]
[1744589914882,9.95604,1607.1,1606.7,5.8102]
[1744589915104,4.97795,1607.1,1606.7,10.78916]
[1744589916205,4.9773,1607.3,1606.9,4.97828]
[1744589916507,3.0,1607.4,1607.0,5.80926]
[1744589916687,7.97698,1607.4,1607.1,4.97775]
[1744589917074,3.0,1607.4,1607.1,9.9555]
[1744589917402,4.97575,1607.8,1607.3,0.8311]
[1744589917403,11.14578,1607.8,1607.3,0.8311]
[1744589917590,5.75317,1607.9,1607.5,4.97652]
[1744589917762,4.97588,1607.8,1607.4,4.97697]
[1744589917962,4.97588,1607.8,1607.4,9.95379]
[1744589918211,4.92546,1607.9,1607.5,4.97646]
[1744589918503,6.941,1608.0,1607.7,5.80706]
[1744589918895,4.97555,1607.9,1607.5,5.80772]
[1744589919298,9.95125,1607.9,1607.5,5.80772]
[1744589919877,9.95125,1607.9,1607.4,4.97695]
[1744589919878,0.02,1608.4,1607.6,0.55]
[1744589920084,11.6501164,1609.5,1608.9,4.97214]
[1744589920085,0.32459941,1609.2,1608.9,4.97214]
[1744589920417,0.02,1609.4,1609.1,4.97172]
[1744589920709,0.02,1609.4,1609.3,4.9711]
[1744589921079,0.02,1609.4,1609.3,11.68366667]
[1744589921281,6.17,1610.3,1610.0,0.8311]
[1744589921483,14.2415927,1610.4,1610.0,0.8311]
[1744589921675,14.2415927,1610.4,1609.8,4.96949]
[1744589921676,4.9683,1610.3,1609.8,4.96949]
[1744589921872,17.37237971,1610.4,1609.7,4.96968]
[1744589922073,3.0,1610.3,1609.6,0.8311]
[1744589922280,12.40464971,1610.4,1609.6,0.8311]
[1744589922608,17.37235971,1610.4,1609.8,4.96956]
[1744589922779,12.40464971,1610.4,1609.8,4.96948]
[1744589923104,12.40464971,1610.4,1610.0,4.96872]
[1744589923105,11.62694971,1610.4,1610.0,4.96872]
[1744589923308,11.62694971,1610.4,1610.3,4.96801]
[1744589923494,9.71e-06,1610.4,1610.3,17.84810686]
[1744589923696,9.71e-06,1610.4,1610.3,0.46210188]
[1744589924075,9.71e-06,1610.4,1610.2,0.8311]
[1744589924277,4.96797,1610.4,1609.9,0.8311]
[1744589924474,4.96854,1610.2,1609.9,0.8311]
[1744589924676,4.96872,1610.1,1609.6,0.8311]
[1744589924903,7.218,1610.2,1609.6,5.80124]
[1744589925210,4.96897,1610.0,1609.6,0.8311]
[1744589925412,4.96987,1609.7,1609.3,0.8311]
[1744589925575,4.96987,1609.7,1609.4,4.97076]
[1744589925576,7.215,1609.7,1609.4,4.97076]
[1744589925781,7.215,1610.0,1609.6,4.96997]
[1744589926201,7.215,1610.1,1609.7,5.03181574]
[1744589926404,7.215,1610.1,1609.8,5.80042]
[1744589926575,7.215,1610.1,1609.8,0.8311]
[1744589926912,7.215,1610.1,1609.8,5.80062]
[1744589927228,58.30802,1610.3,1609.8,0.8311]
[1744589927381,59.4849596,1610.3,1609.8,0.89321305]
[1744589927578,64.4531496,1610.3,1609.8,0.8311]
[1744589927795,64.4531496,1610.3,1609.5,5.76778]
[1744589927796,4.96879,1610.1,1609.5,5.76778]
[1744589927978,0.496879,1610.0,1609.5,5.76778]
[1744589928178,0.496879,1610.0,1609.2,12.18612]
[1744589928179,3.8056,1609.9,1609.2,0.7973]
[1744589928455,4.97036,1609.6,1609.2,0.7973]
[1744589928999,4.97078,1609.5,1609.0,4.03528555]
[1744589929336,4.97155,1609.2,1609.0,4.03528555]
[1744589929500,5.468875,1609.1,1609.0,4.03528555]
[1744589929837,8.468875,1609.1,1609.0,4.03528555]
[1744589929986,9.824475,1609.1,1609.0,4.03528555]
[1744589930187,9.274475,1609.1,1609.0,4.03528555]
[1744589930400,3.0,1608.9,1608.4,4.97367]
[1744589930622,4.97204,1609.0,1608.5,4.97343]
[1744589930623,5.8994875,1609.0,1608.5,4.97343]
[1744589930824,8.8997575,1609.0,1608.5,4.97343]
[1744589931025,3.9274475,1609.0,1608.3,4.83258555]
[1744589931233,4.97297,1608.7,1608.3,4.83258555]
[1744589931434,12.46597,1608.7,1608.3,4.03528555]
[1744589931605,7.493,1608.7,1608.3,9.00927555]
[1744589931931,7.493,1608.7,1608.2,9.94869]
[1744589932137,7.493,1608.7,1608.4,4.97373]
[1744589932287,7.493,1608.7,1608.2,4.9745]
[1744589932482,12.46597,1608.7,1608.1,4.9948]
[1744589932726,13.21527,1608.7,1608.1,4.9948]
[1744589933094,7.493,1608.7,1608.2,4.97447]
[1744589933327,7.493,1608.7,1608.3,4.974]
[1744589933792,7.493,1608.7,1608.2,4.97447]
[1744589933992,7.493,1608.7,1608.2,4.97436]
[1744589934621,12.46623,1608.7,1608.1,0.02]
[1744589934832,4.97331,1608.6,1608.1,0.02]
[1744589935218,13.21553,1608.7,1608.1,4.99474]
[1744589935736,7.493,1608.7,1608.3,4.97407]
[1744589936103,7.493,1608.7,1608.4,5.0358693]
[1744589936306,7.494,1608.9,1608.5,4.97354]
[1744589936536,7.494,1609.2,1608.7,4.97279]
[1744589936712,7.494,1609.2,1608.5,5.77061]
[1744589936917,4.97215,1609.0,1608.6,0.577061]
[1744589937121,4.97251,1608.9,1608.5,0.7973]
[1744589937323,4.97302,1608.7,1608.2,5.77163]
[1744589937520,9.94621,1608.7,1608.2,5.77163]
[1744589937724,4.97302,1608.7,1608.2,5.77163]
[1744589937948,7.494,1608.8,1608.3,0.06216928]
[1744589938155,3.13268005,1608.8,1608.3,4.97405]
[1744589938306,3.13268005,1608.8,1608.4,9.94742]
[1744589938743,3.13268005,1608.8,1608.4,4.97371]
[1744589939343,3.13268005,1608.8,1608.3,5.551295]
[1744589939638,3.13268005,1608.8,1608.3,10.525275]
[1744589939837,3.13268005,1608.8,1608.4,4.9738]
[1744589940241,3.13268005,1608.8,1608.1,4.99466]
[1744589940242,4.97297,1608.7,1608.1,4.99466]
[1744589940412,4.97297,1608.7,1608.2,4.97445]
[1744589940610,3.13268005,1608.8,1608.6,4.97323]
[1744589941052,7.494,1609.1,1608.6,4.97307]
[1744589941220,7.444,1609.1,1608.8,4.97263]
[1744589941543,7.494,1609.5,1609.2,4.97139]
[1744589941743,8.62387342,1609.8,1609.3,0.06213336]
[1744589941903,5.77463,1610.0,1609.5,5.76767]
[1744589942110,60.807,1610.1,1609.7,4.96974]
[1744589942339,60.807,1610.1,1609.5,0.7973]
[1744589942552,7.494,1610.1,1609.8,4.96937]
[1744589942920,5.77368,1610.3,1609.8,9.93878]
[1744589943118,4.96863,1610.1,1609.3,4.97103]
[1744589943351,9.93965,1609.8,1609.3,4.97095]
[1744589943510,4.96982,1609.8,1609.3,9.94191]
[1744589943716,4.9701,1609.7,1609.2,5.76868]
[1744589944125,5.466635,1609.8,1609.3,4.97086]
[1744589944331,7.494,1610.0,1609.3,4.97086]
[1744589944332,12.46306,1610.0,1609.5,4.97023]
[1744589944542,10.122165,1610.3,1609.8,4.96943]
[1744589944864,4.96866,1610.1,1609.5,4.97047]
[1744589945028,4.96863,1610.1,1609.2,0.7973]
[1744589945207,4.96892,1610.1,1609.6,4.96997]
[1744589945413,4.96892,1610.1,1609.7,4.96984]
[1744589945856,4.96833,1610.2,1609.8,5.03153554]
[1744589946156,15.090355,1610.3,1609.8,4.96942]
[1744589946329,8.3676941,1610.6,1610.0,4.96879]
[1744589946330,9.93502,1610.5,1610.0,4.96879]
[1744589946533,0.4003441,1610.6,1610.3,4.96798]
[1744589946715,0.4003441,1610.6,1610.3,4.96796]
[1744589946917,0.4003441,1610.6,1610.5,4.9674]
[1744589947148,0.4003441,1610.6,1610.5,5.02947935]
[1744589947332,0.4003441,1610.6,1610.4,10.431836]
[1744589947531,0.4003441,1610.6,1610.4,0.496796]
[1744589947734,0.4003441,1610.6,1610.4,4.96744]
[1744589947917,0.4003441,1610.6,1610.5,0.25607357]
[1744589948117,0.4003441,1610.6,1610.5,0.19399011]
[1744589948466,0.4003441,1610.6,1610.5,5.16139011]
[1744589948623,0.4003441,1610.6,1610.5,6.17428112]
[1744589948817,0.4003441,1610.6,1610.5,2.66705743]
[1744589949023,0.4003441,1610.6,1610.5,0.40695996]
[1744589949365,0.4003441,1610.6,1610.5,0.19399011]
[1744589950337,5.3674341,1610.6,1610.5,0.19399011]
[1744589950574,4.96801,1610.4,1609.9,4.80648555]
[1744589950736,4.96787,1610.4,1610.0,0.06210109]
[1744589951368,5.961398,1610.4,1610.0,0.06210109]
[1744589951870,5.961398,1610.4,1610.1,0.19403713]
[1744589952055,4.96741,1610.5,1610.1,0.19403713]
[1744589952367,0.4003441,1610.6,1610.2,4.96813]
[1744589952668,5.3674441,1610.6,1610.1,5.16249713]
[1744589952873,5.3674441,1610.6,1610.1,0.19403713]
[1744589952874,4.96817,1610.3,1610.1,0.19403713]
[1744589953073,7.96588,1611.0,1610.1,0.19403713]
[1744589953074,0.005,1611.7,1610.9,4.96616]
[1744589953270,4.96544,1611.2,1610.7,5.73776]
[1744589953492,4.96544,1611.2,1610.8,0.19403713]
[1744589953493,4.96579,1611.1,1610.8,0.19403713]
[1744589953644,5.461784,1611.2,1610.8,0.19403713]
[1744589954046,4.96616,1610.9,1610.8,0.19403713]
[1744589954574,16.26386,1610.9,1610.8,0.19403713]
[1744589954749,4.96715,1610.6,1610.0,5.7399]
[1744589954948,4.96715,1610.6,1610.1,5.03049905]
[1744589955147,4.96715,1610.6,1610.1,0.06209905]
[1744589955379,4.96788,1610.4,1610.0,1.34519]
[1744589955583,4.96806,1610.3,1610.0,1.34519]
[1744589955739,4.96806,1610.3,1610.0,0.57399]
[1744589956153,4.96806,1610.3,1609.8,5.74075]
[1744589956672,4.96806,1610.3,1609.8,0.7712]
[1744589956873,4.96931,1609.9,1609.6,4.03528555]
[1744589957044,4.96802,1610.3,1609.6,4.03528555]
[1744589957045,4.96907,1610.0,1609.6,4.03528555]
[1744589957242,4.96979,1609.8,1609.6,4.03528555]
[1744589957450,4.96939,1609.9,1609.6,4.03528555]
[1744589957887,12.45679,1610.1,1609.6,4.03528555]
[1744589958048,7.488,1610.1,1609.7,6.18573856]
[1744589958248,11.13754,1610.5,1609.9,4.96895]
[1744589958548,4.96772,1610.4,1610.0,4.96892]
[1744589958748,4.9681,1610.3,1609.8,4.9694]
[1744589959051,4.96772,1610.4,1609.9,5.52824817]
[1744589959284,4.96837,1610.2,1609.9,0.49694]
[1744589959588,3.8162,1610.1,1609.5,0.8125]
[1744589959746,4.96941,1609.9,1609.5,0.8125]
[1744589960158,4.96941,1609.9,1609.5,5.78298]
[1744589960371,7.489,1610.2,1609.7,4.96987]
[1744589960556,7.489,1610.6,1610.1,4.96859]
[1744589960961,17.42366,1610.6,1610.1,4.96859]
[1744589961248,12.45627,1610.6,1610.1,4.96859]
[1744589961454,4.96754,1610.5,1610.0,4.96891]
[1744589961755,9.93519,1610.5,1610.0,4.96891]
[1744589962086,4.96754,1610.5,1610.1,4.96857]
[1744589962386,7.489,1610.6,1609.9,5.78174]
[1744589962565,7.489,1610.6,1610.3,4.96787]
[1744589962967,7.489,1610.6,1610.2,4.96831]
[1744589962968,7.489,1610.6,1610.2,4.96811]
[1744589963157,7.489,1610.6,1610.3,4.9679]
[1744589963559,7.489,1610.6,1610.2,0.496811]
[1744589963753,7.489,1610.6,1609.9,13.52959]
[1744589963954,4.96815,1610.3,1609.9,5.78159]
[1744589964260,4.96815,1610.3,1609.9,0.8125]
[1744589964451,9.93685,1610.2,1609.8,4.96937]
[1744589964655,4.96946,1609.9,1609.7,4.03528555]
[1744589965104,12.71656,1609.8,1609.7,4.03528555]
[1744589965306,12.71656,1609.8,1609.3,5.32381367]
[1744589965481,4.97003,1609.7,1609.3,10.29474367]
[1744589965683,9.94013,1609.7,1609.3,10.29474367]
[1744589966019,4.97003,1609.7,1609.3,11.82135504]
[1744589966176,12.71657,1609.8,1609.4,4.97078]
[1744589966376,4.9699,1609.7,1609.5,0.19412095]
[1744589966721,9.93998,1609.7,1609.5,0.19412095]
[1744589966871,4.97017,1609.6,1609.5,0.19412095]
[1744589968014,4.97017,1609.6,1609.2,9.08808684]
[1744589968174,4.97017,1609.6,1609.2,10.81886945]
[1744589968369,12.71659,1609.8,1609.4,4.97058]
[1744589968679,12.71656,1609.8,1609.5,4.97033]
[1744589968996,12.71656,1609.8,1609.6,0.19411957]
[1744589969397,7.747,1609.8,1609.6,0.19411957]
[1744589969589,7.747,1609.8,1609.7,4.96987]
[1744589969913,6.17,1610.1,1609.7,0.73114417]
[1744589970100,6.17,1610.1,1609.7,0.21474521]
[1744589970288,4.96894,1610.0,1609.7,0.21474521]
[1744589970478,16.10752,1610.1,1609.7,4.96985]
[1744589970802,11.13866,1610.1,1609.7,10.933517]
[1744589971022,7.748,1610.2,1609.9,4.96916]
[1744589971209,7.748,1610.2,1609.7,5.963707]
[1744589971387,4.96875,1610.1,1609.7,4.96969]
[1744589971590,12.7165,1610.2,1609.8,4.96954]
[1744589971806,12.7165,1610.2,1609.9,0.19406092]
[1744589971979,4.96863,1610.1,1609.9,0.19406092]
[1744589972516,12.71637,1610.2,1609.9,0.19406092]
[1744589973029,4.9674,1610.5,1610.1,4.96846]
[1744589973030,0.8162,1610.5,1610.1,4.96846]
[1744589973236,53.275,1611.1,1610.3,9.93562]
[1744589973237,12.71492,1610.7,1610.3,9.93562]
[1744589973723,5.78207,1611.0,1610.5,4.96737]
[1744589973880,5.78207,1611.0,1610.5,5.77987]
[1744589974280,3.8162,1611.0,1610.4,0.19406092]
[1744589974597,4.96716,1610.6,1610.3,0.8125]
[1744589975316,4.96706,1610.7,1610.3,5.78049]
[1744589976032,9.93406,1610.7,1610.3,5.78049]
[1744589976315,4.96711,1610.6,1610.3,5.78049]
[1744589976524,4.96741,1610.5,1610.3,0.8125]
[1744589976688,4.96711,1610.6,1610.3,0.8125]
[1744589976884,4.9668,1610.7,1610.3,5.78045]
[1744589977091,9.93383,1610.7,1610.3,6.35853]
[1744589977425,4.96715,1610.6,1610.2,4.96817]
[1744589977629,4.96709,1610.6,1610.1,7.748]
[1744589977923,4.96709,1610.6,1610.0,4.05472265]
[1744589977924,4.96845,1610.2,1610.0,4.05472265]
[1744589978224,4.96943,1609.9,1609.7,4.05472265]
[1744589978819,4.96956,1609.8,1609.7,4.05472265]
[1744589979611,15.71656,1609.8,1609.7,4.05472265]
[1744589980231,4.96956,1609.8,1609.7,4.05472265]
[1744589980637,4.96956,1609.8,1609.1,4.97157]
[1744589980638,4.97052,1609.5,1609.1,4.97157]
[1744589980810,9.94116,1609.5,1609.2,0.497157]
[1744589982132,4.96956,1609.8,1609.2,0.497157]
[1744589982337,7.96956,1609.8,1609.0,4.86722265]
[1744589982519,4.97002,1609.7,1609.3,4.97109]
[1744589982835,9.9862,1609.9,1609.2,4.97141]
[1744589982836,11.95571,1609.9,1609.2,4.97141]
[1744589983038,17.68613,1610.0,1609.6,4.97002]
[1744589983339,4.96978,1609.8,1609.4,4.97077]
[1744589983566,4.96929,1609.9,1609.5,0.06212318]
[1744589983711,4.96927,1609.9,1609.5,0.06212318]
[1744589983916,4.96998,1609.7,1609.4,0.06212487]
[1744589984140,12.717,1610.0,1609.5,4.97036]
[1744589984141,4.96929,1609.9,1609.5,4.97036]
[1744589984345,4.96929,1609.9,1609.5,9.94073]
[1744589984643,4.96929,1609.9,1609.4,5.61746427]
[1744589984938,4.96967,1609.8,1609.4,5.61746427]
[1744589985951,7.748,1610.0,1609.4,0.64669427]
[1744589986155,0.38162,1610.9,1609.4,0.64669427]
[1744589986156,8.5652,1610.4,1609.7,0.8125]
[1744589986308,4.96789,1610.4,1610.0,4.96881]
[1744589986866,4.96789,1610.4,1610.0,5.03091506]
[1744589987150,4.96735,1610.6,1610.2,4.96821]
[1744589987370,4.96749,1610.5,1610.2,0.578071]
[1744589987509,4.96749,1610.5,1610.1,5.7811]
[1744589987710,4.96716,1610.6,1610.2,5.03039991]
[1744589987915,12.71551,1610.8,1610.2,5.03037991]
[1744589988155,4.96694,1610.7,1610.3,9.93572]
[1744589988459,4.96712,1610.6,1610.3,0.993572]
[1744589988656,4.96712,1610.6,1610.1,5.78109]
[1744589988657,4.96678,1610.7,1610.1,0.8125]
[1744589988952,4.96818,1610.3,1610.1,0.8125]
[1744589989550,9.93649,1610.3,1610.0,4.05472265]
[1744589989860,4.96784,1610.4,1610.0,9.08560265]
[1744589990047,4.96814,1610.3,1610.0,4.05472265]
[1744589990244,4.96814,1610.3,1610.0,5.03585592]
[1744589990551,9.9352,1610.5,1610.1,5.03060304]
[1744589990721,4.96775,1610.4,1610.1,4.9685]
[1744589990930,4.96773,1610.4,1610.0,10.00466592]
[1744589991234,4.96744,1610.5,1610.1,10.93747659]
[1744589991435,4.96713,1610.6,1610.2,4.96818]
[1744589991640,4.96713,1610.6,1610.3,5.75532]
[1744589991836,4.96713,1610.6,1610.3,0.7874]
[1744589992040,4.96759,1610.5,1610.3,0.7874]
[1744589992480,4.96658,1610.8,1610.3,5.75536]
[1744589992481,4.96692,1610.7,1610.3,5.75536]
[1744589992630,4.96692,1610.7,1610.3,6.827716]
[1744589992824,4.96692,1610.7,1610.4,0.06208911]
[1744589993159,4.96692,1610.7,1610.3,6.827626]
[1744589993460,11.91137,1610.9,1610.3,1.859756]
[1744589993667,4.96753,1610.5,1610.3,0.7874]
[1744589993822,4.96709,1610.6,1610.3,0.7874]
[1744589994029,4.9668,1610.7,1610.4,4.96767]
[1744589994224,4.9668,1610.7,1610.4,5.543177]
[1744589994442,4.96652,1610.8,1610.4,5.6052661]
[1744589994667,4.96652,1610.8,1610.4,0.575507]
[1744589994958,4.96683,1610.7,1610.4,0.575507]
[1744589995159,4.96683,1610.7,1610.4,5.543207]
[1744589995550,4.96652,1610.8,1610.5,0.5543207]
[1744589995758,9.93322,1610.8,1610.5,0.5543207]
[1744589995945,4.96652,1610.8,1610.5,0.5543207]
[1744589996464,9.93322,1610.8,1610.5,0.5543207]
[1744589996770,4.96682,1610.7,1610.5,0.5543207]
[1744589996946,4.96682,1610.7,1610.4,5.543097]
[1744589997149,7.574,1611.0,1610.3,5.75539]
[1744589997150,4.96752,1610.5,1610.3,0.7874]
[1744589997450,4.96695,1610.7,1610.3,5.75529]
[1744589997646,4.96755,1610.5,1610.3,0.7874]
[1744589997846,4.96711,1610.6,1610.3,0.7874]
[1744589998051,4.96711,1610.6,1610.3,5.75541]
[1744589998249,4.96711,1610.6,1610.3,0.7874]
[1744589998250,9.93438,1610.6,1610.3,0.7874]
[1744589998468,4.96762,1610.5,1610.3,0.7874]
[1744589998637,9.93436,1610.6,1610.3,0.7874]
[1744589998834,4.96741,1610.5,1610.3,0.7874]
[1744589999143,4.96709,1610.6,1610.3,0.7874]
[1744589999342,9.93437,1610.6,1610.3,0.7874]
[1744589999552,4.96715,1610.6,1610.3,0.7874]
[1744589999839,4.96683,1610.7,1610.3,5.75527]
[1744590000047,4.96683,1610.7,1610.4,5.543127]
[1744590000649,6.94521,1611.4,1610.8,0.7874]
[1744590000855,1e-05,1611.4,1610.9,0.06207547]
[1744590001036,1e-05,1611.4,1611.1,4.96542]
[1744590001237,1e-05,1611.4,1611.1,5.02748063]
[1744590001435,1e-05,1611.4,1611.1,9.99290063]
[1744590001647,1e-05,1611.4,1611.1,0.06206063]
[1744590001854,4.96556,1611.1,1610.8,13.32682]
[1744590002066,4.96556,1611.1,1610.9,0.06206951]
[1744590002378,4.96556,1611.1,1610.8,8.3604]
[1744590002684,4.96495,1611.3,1610.9,5.02816951]
[1744590002899,1e-05,1611.4,1611.2,0.8144]
[1744590003052,1e-05,1611.4,1611.3,5.02698405]
[1744590003246,1e-05,1611.4,1611.3,7.61727941]
[1744590003677,1e-05,1611.4,1611.3,2.65234941]
[1744590003882,1e-05,1611.4,1611.3,0.8144]
[1744590004080,4.96467,1611.4,1611.1,0.8144]
[1744590004284,4.96504,1611.3,1611.1,0.8144]
[1744590004645,1e-05,1611.4,1611.2,4.96509]
[1744590004854,1e-05,1611.4,1611.3,0.06205512]
[1744590005049,1e-05,1611.4,1611.3,1.06127563]
[1744590005273,1e-05,1611.4,1611.1,0.8144]
[1744590005473,1e-05,1611.4,1611.3,4.96493]
[1744590005782,1e-05,1611.7,1611.6,0.8144]
[1744590005990,0.4003441,1612.2,1612.1,4.96247]
[1744590006280,5.3626341,1612.2,1611.9,0.8144]
[1744590006465,0.4003441,1612.2,1611.9,6.851567]
[1744590006640,5.3625841,1612.2,1611.9,1.888497]
[1744590006982,4.96267,1612.1,1611.9,0.8144]
[1744590007177,0.4003441,1612.2,1612.0,4.96277]
[1744590007384,0.4003441,1612.2,1612.1,4.96247]
[1744590008381,0.4003441,1612.2,1612.1,9.26407]
[1744590009083,0.4003441,1612.2,1612.1,0.7516]
[1744590009282,0.4003441,1612.2,1611.9,5.71466]
[1744590009440,0.4003441,1612.2,1612.0,0.571466]
[1744590010084,0.4003441,1612.2,1612.1,0.06202184]
[1744590010382,0.4003441,1612.2,1612.1,5.02449184]
[1744590010686,0.4003441,1612.2,1612.1,6.32609184]
[1744590010854,0.4003441,1612.2,1612.1,9.26407]
[1744590011188,6.17,1613.5,1613.0,0.7516]
[1744590011487,6.17,1613.5,1612.3,7.96164]
[1744590011488,4.95969,1613.1,1612.7,0.7516]
[1744590011642,4.96013,1612.9,1612.7,0.7516]
[1744590011836,4.96073,1612.7,1612.3,4.96164]
[1744590012089,4.96004,1612.9,1612.5,4.96111]
[1744590012385,4.96004,1612.9,1612.5,9.92216]
[1744590012678,4.96004,1612.9,1612.5,9.9221]
[1744590012879,4.96031,1612.8,1612.4,4.96151]
[1744590013049,4.96031,1612.8,1612.3,1.743979]
[1744590013251,4.96003,1612.9,1612.4,4.96142]
[1744590013452,13.07726,1613.2,1612.8,4.96018]
[1744590013779,10.46857,1613.2,1612.9,0.06199068]
[1744590013960,0.55,1613.2,1613.0,4.95945]
[1744590014163,0.55,1613.2,1613.1,5.77296708]
[1744590014472,0.55,1613.2,1613.1,1.82484171]
[1744590014657,0.55,1613.2,1613.1,1.88181955]
[1744590014852,0.55,1613.2,1613.1,6.84120955]
[1744590015076,0.02,1613.4,1613.2,0.55]
[1744590015388,0.53318261,1613.8,1613.7,5.50755]
[1744590015545,0.53318261,1613.8,1613.7,7.851]
[1744590015546,5.49042261,1613.8,1613.7,7.851]
[1744590015887,5.49042261,1613.8,1613.3,4.95858]
[1744590016088,5.49042261,1613.8,1613.5,4.95813]
[1744590016089,0.53318261,1613.8,1613.5,4.95813]
[1744590016390,0.53318261,1613.8,1613.7,4.95755]
[1744590016856,0.53318261,1613.8,1613.7,5.01949231]
[1744590017047,0.53318261,1613.8,1613.7,6.01721954]
[1744590017248,0.53318261,1613.8,1613.7,13.80427723]
[1744590017660,0.53318261,1613.8,1613.7,18.0351052]
[1744590017958,0.02,1614.4,1614.1,0.7688]
[1744590018181,0.02,1614.4,1614.2,4.95581]
[1744590018342,0.02,1614.4,1614.1,0.7688]
[1744590019001,4.95596,1614.3,1613.8,5.72589]
[1744590019207,0.02,1614.4,1613.9,0.55]
[1744590019408,0.4203441,1615.4,1615.2,0.7688]
[1744590019608,0.4203441,1615.4,1615.3,8.135]
[1744590020289,6.17,1616.3,1615.3,8.135]
[1744590020290,0.02,1616.4,1615.3,8.135]
[1744590020481,4.94717,1617.1,1616.2,0.7688]
[1744590020674,6.64349551,1617.0,1616.4,4.94922]
[1744590020921,6.64349551,1617.0,1616.4,4.94911]
[1744590021247,0.4003441,1617.0,1616.9,4.94773]
[1744590021371,0.4003441,1617.0,1616.9,14.25253]
[1744590021577,0.02,1617.4,1616.9,14.25253]
[1744590021578,0.02,1617.4,1617.3,4.94651]
[1744590021777,0.02,1617.4,1617.3,5.71531]
[1744590021980,4.94369,1618.3,1617.7,4.94519]
[1744590022213,8.836,1618.3,1617.3,0.7688]
[1744590022414,4.94522,1617.8,1617.0,0.7688]
[1744590022618,4.94622,1617.4,1617.0,0.7688]
[1744590022811,5.440842,1617.4,1617.0,0.7688]
[1744590022983,5.440842,1617.4,1616.8,9.89573]
[1744590023180,4.94801,1616.9,1616.3,0.7688]